bitfinex-derivatives/quotes_ETHF0:USTF0_20250816
["timestamp","ask_amount","ask_price","bid_price","bid_amount"]
[1755352809311,1.8634,4394.7,4394.6,0.7417]
[1755352809614,1.8634,4394.7,4394.6,1.1921]
[1755352810808,0.2574,4394.8,4394.7,1.3485]
[1755352811009,0.2574,4394.8,4394.7,1.7989]
[1755352811314,1.144,4394.8,4394.7,1.7989]
[1755352811607,1.8634,4394.8,4394.7,0.7417]
[1755352811800,0.8406,4394.7,4393.9,4.2866]
[1755352812006,0.2574,4394.0,4393.9,4.7435]
[1755352812406,0.2574,4394.0,4393.9,5.0067]
[1755352812807,1.5989,4394.0,4393.9,5.0067]
[1755352814515,1.144,4394.6,4394.5,0.7201]
[1755352814713,1.5989,4394.6,4394.5,1.7989]
[1755352815712,1.8634,4394.6,4394.5,1.7989]
[1755352816210,1.8634,4394.6,4394.5,1.4337]
[1755352816413,1.8634,4394.6,4394.1,0.8156]
[1755352816612,1.1051,4394.5,4394.2,0.2632]
[1755352816803,1.8634,4394.3,4394.2,0.7417]
[1755352817007,3.2078,4394.7,4394.6,0.7201]
[1755352817008,1.2132,4394.7,4394.6,0.7201]
[1755352817210,1.2132,4394.7,4394.6,1.7989]
[1755352817609,1.5989,4394.7,4394.6,1.7989]
[1755352818610,3.2078,4395.2,4394.6,0.7201]
[1755352818818,1.22350067,4395.1,4395.0,1.5045]
[1755352819314,1.94020067,4395.1,4395.0,1.5045]
[1755352819515,1.65741979,4395.1,4395.0,1.8867]
[1755352819817,1.5469,4395.1,4395.0,1.8867]
[1755352821017,1.0202,4395.1,4394.5,0.4652]
[1755352821215,0.8386,4394.3,4394.2,0.2764]
[1755352821518,0.7374,4394.0,4393.9,3.9707]
[1755352821713,1.5469,4394.0,4393.9,4.8181]
[1755352822016,1.5469,4394.0,4393.9,1.8867]
[1755352822519,1.113,4394.0,4393.9,1.8867]
[1755352823519,1.8297,4394.0,4393.9,1.8867]
[1755352825222,1.3958,4393.7,4393.6,1.2374]
[1755352825519,1.8297,4393.7,4393.6,1.2374]
[1755352826416,0.5558,4393.5,4393.4,0.2764]
[1755352826715,0.7374,4393.5,4393.3,3.2078]
[1755352826922,1.8297,4393.4,4393.3,3.6684]
[1755352827122,1.8297,4393.4,4393.3,3.98]
[1755352827419,1.8297,4393.4,4393.3,4.4452]
[1755352831524,1.8297,4393.4,4393.3,3.6684]
[1755352832323,1.8297,4393.4,4393.3,3.392]
[1755352832622,1.8297,4393.4,4393.3,3.2078]
[1755352832921,1.8297,4393.4,4393.3,3.6684]
[1755352833125,1.8297,4393.4,4393.3,4.4452]
[1755352833627,1.8297,4393.4,4393.3,4.8274]
[1755352833925,1.8297,4393.4,4393.3,5.0945]
[1755352834125,1.94094161,4393.4,4393.3,5.0945]
[1755352838327,1.94094161,4393.4,4393.3,4.3177]
[1755352838629,1.94094161,4393.4,4393.3,3.2078]
[1755352838830,1.94094161,4393.4,4393.3,3.6684]
[1755352839032,1.94094161,4393.4,4393.3,4.8274]
[1755352839328,1.94094161,4393.4,4393.3,4.4452]
[1755352839529,1.65814161,4393.4,4393.3,3.6684]
[1755352839720,1.94094161,4393.4,4393.3,4.8274]
[1755352839922,1.94094161,4393.4,4393.3,5.0945]
[1755352840837,1.94094161,4393.4,4393.3,3.2078]
[1755352841125,1.94094161,4393.4,4393.3,3.4842]
[1755352841330,0.6584,4393.3,4392.7,0.2764]
[1755352841529,1.8297,4392.8,4392.7,1.8867]
[1755352841926,1.5469,4392.8,4392.7,1.8867]
[1755352842225,1.8297,4392.8,4392.7,1.8867]
[1755352843229,1.8297,4392.8,4392.7,1.4215]
[1755352843426,1.8297,4392.8,4392.7,1.1099]
[1755352843628,1.8297,4392.8,4392.7,0.4606]
[1755352843931,1.8297,4392.8,4392.7,1.6196]
[1755352844534,1.8297,4392.8,4392.7,1.8867]
[1755352846732,1.8297,4392.8,4392.7,1.2374]
[1755352847034,1.8297,4392.8,4392.7,1.6196]
[1755352847732,1.8297,4392.8,4392.7,1.2374]
[1755352847934,1.0202,4392.8,4392.7,0.1842]
[1755352848142,1.0202,4392.8,4392.7,0.4606]
[1755352848536,1.8219,4392.7,4392.6,1.8882]
[1755352850545,0.4416,4392.6,4392.1,1.1253]
[1755352850841,1.8127,4392.2,4392.1,1.8359]
[1755352851143,1.92419895,4392.2,4392.1,1.8359]
[1755352851944,1.64919895,4392.2,4392.1,1.8359]
[1755352852140,1.64919895,4392.2,4392.0,3.2078]
[1755352852442,1.8127,4391.9,4391.8,1.3149]
[1755352853044,1.8127,4391.9,4391.8,1.5929]
[1755352854040,0.466,4391.6,4391.0,0.278]
[1755352854346,1.5377,4391.1,4391.0,1.8359]
[1755352854751,1.0961,4391.1,4391.0,1.8359]
[1755352855549,1.8127,4391.1,4391.0,0.7456]
[1755352855847,1.8127,4391.1,4391.0,1.221]
[1755352856243,0.916,4390.9,4390.8,3.5001]
[1755352856443,3.2078,4391.8,4391.4,0.243]
[1755352856444,0.916,4391.5,4391.4,0.243]
[1755352856644,1.20746623,4391.5,4391.4,1.8359]
[1755352856843,1.64906623,4391.5,4391.4,1.8359]
[1755352858851,1.5377,4391.5,4391.4,1.8359]
[1755352859052,1.64883902,4391.5,4391.4,1.8359]
[1755352859252,1.8127,4391.5,4391.4,1.8359]
[1755352860253,0.2566,4391.5,4391.4,1.8359]
[1755352860458,3.2078,4392.8,4392.2,0.8395]
[1755352860759,1.64878802,4392.7,4392.6,1.8359]
[1755352861860,0.11108802,4392.7,4392.6,1.8359]
[1755352862047,1.0961,4392.7,4392.6,1.8359]
[1755352862258,1.64879375,4392.7,4392.6,1.8359]
[1755352862453,0.5425,4392.5,4392.4,0.278]
[1755352862658,1.8127,4392.5,4392.4,1.221]
[1755352862850,0.2859,4392.5,4392.4,1.8359]
[1755352863055,3.6494,4392.8,4392.4,0.7106]
[1755352863260,3.7503,4392.8,4392.7,1.8359]
[1755352863452,0.3735,4393.4,4392.7,1.8359]
[1755352863658,0.11110219,4393.3,4393.2,1.8359]
[1755352863853,0.3735,4393.7,4393.2,1.8359]
[1755352864052,3.9304,4394.0,4393.9,0.7106]
[1755352864252,4.85657671,4394.0,4393.9,1.8359]
[1755352864857,0.8151,4394.4,4393.9,1.8359]
[1755352865052,0.8151,4394.4,4394.0,1.1253]
[1755352865053,0.48456117,4394.3,4394.0,1.1253]
[1755352865254,0.7226,4394.3,4394.2,1.8359]
[1755352865455,3.2078,4394.5,4394.2,1.8359]
[1755352865660,0.11104476,4394.4,4394.3,1.8359]
[1755352865959,3.2078,4394.5,4394.3,1.8359]
[1755352866269,3.2078,4394.5,4394.4,1.8359]
[1755352866959,3.4644,4394.5,4394.4,1.8359]
[1755352867164,4.7455,4394.5,4394.4,1.8359]
[1755352867456,5.0205,4394.5,4394.4,0.7456]
[1755352867661,5.0205,4394.5,4394.4,0.4533]
[1755352868059,5.0205,4394.5,4394.4,0.7456]
[1755352868358,3.2078,4394.5,4394.4,1.8359]
[1755352868963,3.4644,4394.5,4394.4,1.8359]
[1755352869162,3.8379,4394.5,4394.4,1.8359]
[1755352869358,4.1238,4394.5,4394.4,1.8359]
[1755352869564,4.3039,4394.5,4394.4,1.8359]
[1755352870169,4.7455,4394.5,4394.4,1.8359]
[1755352870866,3.2078,4394.5,4394.4,1.8359]
[1755352871064,4.7455,4394.5,4394.4,1.221]
[1755352871265,4.7455,4394.5,4394.4,1.5929]
[1755352871771,4.7455,4394.5,4394.4,1.8359]
[1755352872464,1.5377,4394.5,4394.4,1.8359]
[1755352872867,0.4416,4394.9,4394.4,0.7106]
[1755352873064,0.6301,4394.8,4394.7,1.8359]
[1755352873267,0.2566,4394.8,4394.7,1.8359]
[1755352873865,0.3735,4395.4,4394.9,0.7106]
[1755352874068,0.3735,4395.4,4394.3,3.2078]
[1755352874069,1.5377,4395.4,4395.3,1.8359]
[1755352875278,1.0961,4395.4,4395.3,1.8359]
[1755352875568,3.2078,4395.6,4395.5,1.8359]
[1755352876170,4.3039,4395.6,4395.5,1.8359]
[1755352876764,3.4644,4395.6,4395.5,1.8359]
[1755352876972,3.2078,4395.6,4395.5,1.8359]
[1755352877370,3.4644,4395.6,4395.5,1.8359]
[1755352877565,4.7455,4395.6,4395.5,1.8359]
[1755352877766,3.4644,4395.6,4395.5,1.8359]
[1755352878066,3.2078,4395.6,4395.5,1.8359]
[1755352878270,3.4644,4395.6,4395.5,1.8359]
[1755352878470,4.1238,4395.6,4395.5,1.8359]
[1755352878670,4.7586,4395.6,4395.5,1.8359]
[1755352878879,4.3039,4395.6,4395.5,1.8359]
[1755352879374,1.0961,4395.6,4395.5,1.8359]
[1755352880576,3.2078,4396.3,4395.5,1.5579]
[1755352880784,4.8188,4396.3,4396.2,1.812]
[1755352881474,4.3641,4396.3,4396.2,1.812]
[1755352881776,3.2078,4396.3,4396.2,1.812]
[1755352882079,3.475,4396.9,4396.8,0.7231]
[1755352882378,4.3641,4396.9,4396.8,1.812]
[1755352882577,3.7801,4396.9,4396.8,1.812]
[1755352883175,0.1,4397.2,4396.8,1.812]
[1755352883377,0.7669,4397.2,4397.1,1.4418]
[1755352883678,1.1292,4397.1,4396.8,0.4394]
[1755352883985,1.611,4396.9,4396.8,1.5658]
[1755352884178,0.1,4397.2,4396.8,0.7231]
[1755352884380,0.1,4397.2,4397.1,0.7231]
[1755352884584,1.2563,4397.2,4397.1,1.812]
[1755352884782,0.3672,4397.2,4397.1,1.812]
[1755352884982,0.1,4397.2,4397.1,5.0198]
[1755352889891,0.3997,4398.0,4397.1,5.0198]
[1755352890086,1.1563,4398.0,4397.9,1.812]
[1755352890289,1.611,4398.0,4397.9,1.812]
[1755352891083,0.7566,4398.0,4397.9,1.812]
[1755352891289,4.2392,4398.7,4398.6,0.1829]
[1755352891490,4.2392,4398.7,4398.6,0.7562]
[1755352891682,4.2392,4398.7,4398.6,0.1829]
[1755352891882,4.2392,4398.7,4398.4,0.4394]
[1755352891883,0.4547,4398.3,4397.8,3.6472]
[1755352892095,0.2672,4398.0,4397.9,1.812]
[1755352892394,1.1563,4398.0,4397.9,1.812]
[1755352892596,1.611,4398.0,4397.9,1.812]
[1755352892894,0.2672,4398.0,4397.9,1.812]
[1755352893796,0.8512,4398.0,4397.9,1.812]
[1755352894299,0.3997,4398.6,4398.0,0.7187]
[1755352894591,1.8858,4398.6,4398.5,1.812]
[1755352895192,0.8544,4398.5,4397.7,3.2078]
[1755352895392,1.611,4397.9,4397.8,1.812]
[1755352895589,1.8858,4397.9,4397.8,1.812]
[1755352895789,1.8858,4397.9,4397.8,1.1956]
[1755352896988,0.7566,4397.9,4397.5,0.2793]
[1755352897194,1.8858,4397.3,4397.2,4.7405]
[1755352897494,1.8858,4397.3,4397.2,5.0198]
[1755352897690,3.2078,4398.2,4397.3,0.3702]
[1755352897889,3.2078,4398.2,4397.2,3.9309]
[1755352897890,0.7566,4398.2,4398.1,0.9163]
[1755352898099,0.7566,4398.2,4398.1,1.812]
[1755352898293,0.2672,4398.2,4398.1,1.812]
[1755352898488,3.6625,4398.9,4398.2,1.0889]
[1755352898695,0.7566,4398.8,4398.7,1.3726]
[1755352899002,1.8858,4398.8,4398.7,1.812]
[1755352899200,1.8858,4398.8,4398.7,1.4418]
[1755352899694,1.8858,4398.8,4397.8,3.2078]
[1755352899695,0.4515,4397.9,4397.8,4.2102]
[1755352899900,1.1563,4397.9,4397.8,1.0024]
[1755352900201,1.611,4397.9,4397.8,1.0024]
[1755352900394,1.611,4397.9,4397.8,1.812]
[1755352900995,1.611,4397.9,4397.8,5.0198]
[1755352901196,3.2078,4398.9,4397.8,3.9309]
[1755352901403,2.19546849,4398.8,4398.7,1.3726]
[1755352901599,2.47026849,4398.8,4398.7,1.812]
[1755352902301,0.4547,4398.6,4398.0,0.8096]
[1755352902501,1.2113,4398.6,4398.5,0.1829]
[1755352902700,1.4861,4398.6,4398.5,0.1829]
[1755352902898,1.4861,4398.6,4398.5,0.4622]
[1755352903103,1.4861,4398.6,4398.5,1.1956]
[1755352903104,2.47083259,4398.6,4398.5,1.1956]
[1755352903295,2.47083259,4398.6,4398.5,1.5658]
[1755352903508,0.58503259,4398.6,4398.5,1.812]
[1755352903708,0.8512,4398.6,4398.5,1.812]
[1755352904012,1.8858,4398.6,4398.5,1.812]
[1755352905213,2.47129671,4398.6,4398.5,1.812]
[1755352906810,2.47129671,4398.6,4398.5,0.4622]
[1755352907010,1.611,4397.9,4397.8,1.812]
[1755352907311,1.8858,4397.9,4397.8,1.812]
[1755352907917,1.611,4397.9,4397.8,1.812]
[1755352908109,1.611,4398.7,4398.6,0.1829]
[1755352908303,1.85236351,4398.7,4398.6,1.812]
[1755352908716,2.28296351,4398.7,4398.6,1.812]
[1755352910316,2.7549347,4398.7,4398.6,1.1956]
[1755352911214,2.7549347,4398.7,4398.6,1.5594]
[1755352911916,0.6952,4398.0,4397.9,1.7816]
[1755352912119,0.6952,4398.0,4397.9,1.4178]
[1755352912120,2.3623336,4398.0,4397.9,1.4178]
[1755352912419,0.9960336,4398.0,4397.9,1.7816]
[1755352912823,0.3803,4398.3,4397.9,1.7816]
[1755352913019,0.586713,4398.2,4398.1,1.7816]
[1755352914626,4.9848,4399.4,4399.3,1.7816]
[1755352914820,5.88433344,4399.4,4399.3,1.7816]
[1755352916118,4.10733344,4399.4,4399.3,1.7816]
[1755352916314,5.61343344,4399.4,4399.3,1.7816]
[1755352916626,2.40563344,4399.4,4399.3,1.7816]
[1755352917519,1.97503344,4399.4,4399.3,1.7816]
[1755352918724,0.3803,4399.9,4399.3,1.7816]
[1755352918915,1.97490856,4399.8,4399.7,0.73]
[1755352919121,2.67640856,4399.8,4399.7,1.7816]
[1755352920527,2.67640856,4399.8,4399.7,1.4178]
[1755352920725,2.67640856,4399.8,4399.7,1.1542]
[1755352921026,1.777,4399.5,4399.0,0.4213]
[1755352921224,0.6952,4399.2,4399.1,0.1819]
[1755352921431,0.6952,4398.8,4398.7,1.1513]
[1755352921726,1.5061,4398.8,4398.7,1.7816]
[1755352921922,3.5881,4399.6,4398.7,1.5151]
[1755352922129,2.40503708,4399.5,4399.4,1.7816]
[1755352922425,0.11104543,4399.5,4399.4,1.7816]
[1755352922621,0.8109,4399.8,4399.5,0.2665]
[1755352922828,0.8109,4399.8,4399.4,0.73]
[1755352922829,0.35382271,4399.7,4399.6,1.7816]
[1755352923033,1.18652271,4399.7,4399.6,1.7816]
[1755352923222,1.0755,4399.7,4399.6,1.7816]
[1755352923421,1.88798884,4399.7,4399.6,0.4664]
[1755352923928,1.88798884,4399.7,4399.6,1.7816]
[1755352924124,1.61708884,4399.7,4399.6,1.7816]
[1755352924327,1.0755,4399.7,4399.6,1.7816]
[1755352924629,2.8109,4400.0,4399.6,0.73]
[1755352924821,1.0755,4399.8,4399.7,1.7816]
[1755352925025,1.18647351,4399.8,4399.7,1.7816]
[1755352925226,0.80617351,4399.8,4399.7,1.7816]
[1755352925526,0.6952,4399.4,4399.3,4.0955]
[1755352925730,1.777,4399.4,4399.3,0.8877]
[1755352925920,3.2078,4399.8,4398.8,1.1513]
[1755352926121,1.3464,4398.9,4398.8,1.5151]
[1755352926317,1.777,4398.9,4398.8,1.5151]
[1755352926721,1.5061,4398.9,4398.8,1.7816]
[1755352927527,1.777,4398.9,4398.8,1.7816]
[1755352927727,1.5061,4398.9,4398.8,1.7816]
[1755352927927,1.777,4398.9,4398.8,1.7816]
[1755352928129,1.5061,4398.9,4398.8,1.7816]
[1755352928327,1.0755,4398.9,4398.8,1.7816]
[1755352928524,0.4306,4398.8,4398.7,3.2078]
[1755352928726,1.777,4398.8,4398.7,3.9407]
[1755352929028,1.777,4398.8,4398.7,4.9894]
[1755352929231,0.6952,4398.8,4398.7,4.9894]
[1755352929528,0.3803,4399.5,4399.2,0.3638]
[1755352929829,0.3803,4399.8,4399.5,0.3638]
[1755352930030,1.1258,4399.8,4399.7,0.73]
[1755352930224,0.1109861,4399.8,4399.7,1.7816]
[1755352930430,0.2428,4399.9,4399.8,1.5997]
[1755352930629,0.2428,4399.9,4399.8,1.4178]
[1755352930630,1.88798347,4399.9,4399.8,1.4178]
[1755352930832,1.18648347,4399.9,4399.8,1.4178]
[1755352931033,0.80618347,4399.9,4399.8,1.7816]
[1755352931229,1.18648347,4399.9,4399.8,1.7816]
[1755352931422,1.88798347,4399.9,4399.8,1.7816]
[1755352931626,1.88798347,4399.9,4399.4,4.2594]
[1755352931824,1.1258,4399.5,4399.4,4.3016]
[1755352932025,1.777,4399.5,4399.4,4.3016]
[1755352932436,1.777,4399.5,4399.4,4.9894]
[1755352932934,0.3803,4399.8,4399.4,3.9378]
[1755352933135,3.5061,4400.0,4399.9,1.7816]
[1755352933334,3.61707252,4400.0,4399.9,1.7816]
[1755352933723,2.11097252,4400.0,4399.9,1.7816]
[1755352934125,2.0,4400.0,4399.9,1.7816]
[1755352934530,3.777,4400.0,4399.9,0.7329]
[1755352934737,3.88796827,4400.0,4399.9,0.4664]
[1755352935140,3.88796827,4400.0,4399.9,0.7329]
[1755352935736,1.0818,4399.9,4399.6,0.2665]
[1755352935933,1.777,4399.5,4399.4,3.2078]
[1755352936238,0.6952,4399.5,4399.2,0.4213]
[1755352936430,1.777,4399.4,4399.3,1.7816]
[1755352937439,1.0755,4399.4,4399.3,1.7816]
[1755352937639,1.5061,4399.8,4399.7,0.73]
[1755352937939,0.2428,4399.8,4399.7,1.7816]
[1755352938832,2.0,4400.0,4399.7,0.73]
[1755352939033,2.0,4400.0,4399.9,1.7553]
[1755352939243,2.11103274,4400.0,4399.9,1.7553]
[1755352939538,2.0,4400.0,4399.9,1.7553]
[1755352940740,2.8217,4400.0,4399.9,1.7553]
[1755352940938,3.0934,4400.0,4399.9,1.7553]
[1755352941338,2.7089,4400.0,4399.9,1.7553]
[1755352941540,2.0,4400.0,4399.9,22.8223]
[1755352942943,2.0,4400.0,4399.9,22.8213]
[1755352943143,2.2631,4400.0,4399.9,22.8213]
[1755352945145,2.0,4400.0,4399.9,22.8213]
[1755352946745,3.3507,4400.0,4399.9,22.8173]
[1755352946946,3.7729,4400.0,4399.9,21.9977]
[1755352947444,3.7729,4400.0,4399.9,1.7553]
[1755352947644,3.7729,4400.0,4399.9,22.8163]
[1755352948145,3.7729,4400.0,4399.9,1.7553]
[1755352948445,3.7729,4400.0,4399.9,22.8153]
[1755352950543,3.7729,4400.0,4399.9,1.7553]
[1755352950750,3.7729,4400.0,4399.9,21.059]
[1755352951739,3.4709,4400.9,4400.8,0.69]
[1755352951941,0.4222,4401.3,4400.8,26.0211]
[1755352952148,3.2078,4401.5,4400.8,26.0211]
[1755352952149,0.2631,4401.0,4400.9,1.3424]
[1755352952445,1.7729,4400.5,4400.4,0.4457]
[1755352952750,0.7089,4400.5,4400.3,24.2648]
[1755352952951,1.7729,4400.4,4400.3,24.2648]
[1755352953245,0.6795,4401.1,4400.3,25.3301]
[1755352953448,1.88057005,4401.0,4400.9,1.1104]
[1755352953645,1.88057005,4401.0,4400.9,1.7553]
[1755352954446,4.0381,4401.5,4401.4,0.4457]
[1755352954743,4.40883232,4401.5,4401.0,0.6647]
[1755352954949,0.7089,4401.1,4401.0,1.3547]
[1755352955150,1.7729,4401.1,4401.0,1.7553]
[1755352956043,3.2078,4401.5,4401.1,0.45412]
[1755352956348,1.5156,4401.5,4401.4,1.7553]
[1755352956644,3.2078,4402.2,4401.6,0.45407]
[1755352956645,0.2573,4402.1,4401.6,0.45407]
[1755352956850,0.92924846,4402.0,4401.9,1.7553]
[1755352957049,1.20094846,4402.0,4401.9,1.7553]
[1755352957249,1.88044846,4402.0,4401.9,1.3547]
[1755352958048,1.88040673,4402.0,4401.9,1.3547]
[1755352958650,1.0934,4402.0,4401.9,1.7553]
[1755352958850,1.5156,4402.0,4401.9,1.7553]
[1755352959050,1.7729,4402.0,4401.9,1.7553]
[1755352959248,1.5156,4402.0,4401.9,1.7553]
[1755352959842,1.0934,4402.0,4401.9,1.7553]
[1755352960652,1.5156,4402.0,4401.9,1.7553]
[1755352961052,0.2631,4402.0,4401.9,1.7553]
[1755352961456,0.7089,4402.6,4402.5,0.69]
[1755352961753,1.7729,4402.7,4402.6,0.2457]
[1755352961962,0.7089,4402.7,4402.5,21.048]
[1755352962253,1.7729,4402.6,4402.5,22.8033]
[1755352962559,0.8217,4402.6,4402.5,22.8033]
[1755352962750,3.2078,4402.9,4402.6,0.6647]
[1755352962952,1.5156,4402.7,4402.6,1.7553]
[1755352963850,0.6795,4403.5,4402.7,1.0653]
[1755352964055,0.7089,4402.7,4402.6,4.5625]
[1755352964251,1.7729,4402.7,4402.6,21.044]
[1755352964650,1.7729,4402.7,4402.6,22.1544]
[1755352965054,1.0934,4402.1,4402.0,0.6914]
[1755352965255,1.7729,4402.1,4402.0,22.1544]
[1755352965451,0.8067,4402.6,4402.1,0.6647]
[1755352965655,1.7729,4402.6,4402.5,1.7553]
[1755352965958,1.5156,4402.6,4402.5,1.7553]
[1755352966857,1.7729,4402.6,4402.5,1.7553]
[1755352967360,1.7729,4402.4,4402.3,3.2078]
[1755352967552,1.7729,4402.4,4402.3,24.2488]
[1755352967752,1.7729,4402.4,4402.3,21.041]
[1755352969558,1.7729,4402.4,4402.3,21.3307]
[1755352970054,1.7729,4402.4,4402.3,21.041]
[1755352970449,1.7729,4402.4,4402.1,0.6955]
[1755352970450,0.7089,4402.4,4402.1,0.4445]
[1755352970752,1.0524,4402.2,4401.8,0.251]
[1755352970958,1.7274,4402.0,4401.9,21.038]
[1755352971359,1.7274,4402.0,4401.9,21.4558]
[1755352971563,1.7274,4402.0,4401.9,21.7455]
[1755352971756,1.7274,4402.0,4401.9,22.19]
[1755352971957,0.675,4401.5,4401.4,33.4175]
[1755352972257,1.7274,4401.5,4401.4,54.4545]
[1755352972455,1.7274,4401.5,4401.4,54.8512]
[1755352972656,1.7274,4401.5,4401.4,53.759]
[1755352974456,1.7274,4401.5,4400.6,3.2078]
[1755352974457,0.675,4400.8,4400.7,0.4565]
[1755352974668,1.7274,4400.8,4400.7,21.7435]
[1755352975264,1.7274,4400.8,4400.7,22.188]
[1755352975560,1.7274,4400.8,4400.1,32.714]
[1755352975762,0.675,4400.2,4400.1,0.4565]
[1755352975959,3.2078,4400.9,4400.2,1.0922]
[1755352976160,3.2078,4400.9,4400.3,0.6955]
[1755352976361,0.675,4400.8,4400.7,0.1668]
[1755352976561,0.675,4400.8,4400.7,1.7982]
[1755352976763,1.0611,4400.8,4400.7,1.7982]
[1755352976959,1.4788,4400.8,4400.7,1.7982]
[1755352977165,1.7274,4400.8,4400.7,1.7982]
[1755352977768,1.4788,4400.8,4400.7,1.7982]
[1755352978871,0.2421,4400.8,4400.7,1.7982]
[1755352979264,0.4044,4400.8,4400.7,1.7982]
[1755352979568,0.7905,4400.8,4400.7,1.7982]
[1755352979969,0.4044,4400.9,4400.8,1.7982]
[1755352980160,1.4788,4400.9,4400.7,3.2078]
[1755352980367,1.4788,4400.0,4399.9,0.4178]
[1755352980560,1.4788,4400.0,4399.9,0.7075]
[1755352980561,1.7274,4400.0,4399.9,0.7075]
[1755352980762,1.7274,4400.0,4399.9,1.7982]
[1755352981267,1.7274,4400.0,4399.9,0.7075]
[1755352981465,1.7274,4400.0,4399.9,1.152]
[1755352982473,1.7274,4400.0,4399.7,21.036]
[1755352982771,1.7274,4399.8,4399.7,21.036]
[1755352982971,1.7274,4399.8,4399.7,21.2028]
[1755352983473,1.7274,4399.8,4399.7,21.7435]
[1755352983874,1.7274,4399.8,4399.7,0.7075]
[1755352984068,0.675,4399.5,4399.4,1.152]
[1755352984268,1.7274,4399.5,4399.4,22.19]
[1755352985272,1.7274,4399.5,4399.4,1.152]
[1755352985473,1.7274,4399.5,4399.4,22.19]
[1755352986465,1.0611,4399.5,4399.4,22.8362]
[1755352986672,0.2421,4399.5,4399.4,22.8362]
[1755352987176,1.7274,4399.5,4399.4,22.8362]
[1755352987771,0.4177,4399.9,4399.4,22.8362]
[1755352987965,0.2421,4399.7,4399.6,0.706]
[1755352988170,0.3861,4400.1,4399.7,0.6955]
[1755352988372,1.7274,4400.1,4400.0,1.7982]
[1755352988771,1.7274,4400.1,4400.0,1.4015]
[1755352989175,1.7274,4400.1,4400.0,1.7982]
[1755352992377,0.675,4400.1,4400.0,1.1027]
[1755352992570,1.7274,4400.1,4400.0,1.1027]
[1755352992968,1.7274,4400.1,4400.0,1.7982]
[1755352993169,1.4788,4400.1,4400.0,1.4015]
[1755352993370,1.7274,4400.1,4400.0,1.7982]
[1755352995678,0.675,4399.6,4399.5,0.4178]
[1755352995982,1.7274,4399.6,4399.5,21.4548]
[1755352996778,1.7274,4399.6,4399.5,22.189]
[1755352997081,1.7274,4399.6,4399.5,22.8352]
[1755352998976,3.2078,4400.3,4399.6,0.677]
[1755352999179,0.3636,4399.6,4399.3,1.0434]
[1755352999378,1.7701,4399.6,4399.5,0.966]
[1755352999584,1.7701,4399.6,4399.5,1.3783]
[1755353000777,1.7701,4399.6,4399.5,1.7447]
[1755353001489,1.7701,4399.6,4399.5,1.1192]
[1755353002382,1.7701,4399.6,4399.5,1.7447]
[1755353003581,0.7096,4399.3,4399.2,0.433]
[1755353003877,1.7701,4399.3,4399.2,21.2033]
[1755353004078,1.7701,4399.3,4399.2,21.468]
[1755353004285,1.87743632,4399.3,4399.2,21.468]
[1755353004978,1.7701,4399.3,4399.2,21.7419]
[1755353005184,1.87745413,4399.3,4399.2,22.7797]
[1755353005380,1.5141,4399.3,4399.2,22.7797]
[1755353005588,1.0732,4399.3,4399.2,22.7797]
[1755353005789,1.7701,4399.3,4399.2,21.035]
[1755353005988,1.7701,4399.3,4399.2,21.468]
[1755353006188,1.87746192,4399.3,4399.2,21.468]
[1755353006582,0.8045,4399.2,4398.6,3.2078]
[1755353006885,1.7701,4398.7,4398.6,1.3783]
[1755353007080,1.7701,4398.7,4398.6,22.7787]
[1755353007283,1.0732,4398.7,4398.6,22.7787]
[1755353007477,0.7096,4398.7,4398.6,22.7787]
[1755353007684,0.8045,4399.0,4398.6,22.7787]
[1755353007885,1.61357754,4398.9,4398.8,1.7447]
[1755353008085,1.87747754,4398.9,4398.8,1.7447]
[1755353008888,1.7701,4398.7,4398.6,21.2023]
[1755353009089,1.7701,4398.7,4398.6,21.467]
[1755353009290,0.7096,4398.3,4398.2,1.2209]
[1755353009488,1.87752667,4398.3,4398.2,22.2549]
[1755353009883,1.87752667,4398.3,4398.2,22.5196]
[1755353010182,1.87752667,4398.3,4398.2,21.4762]
[1755353010382,1.87752667,4398.3,4398.1,3.2078]
[1755353010383,1.7701,4398.2,4398.1,3.2078]
[1755353010583,1.7701,4398.2,4398.1,21.034]
[1755353010778,1.87729619,4398.2,4398.1,22.1532]
[1755353010990,1.87729619,4398.2,4398.1,22.7787]
[1755353011183,1.87729375,4398.2,4398.1,22.7787]
[1755353011385,1.7701,4398.2,4398.1,22.7787]
[1755353014785,3.2078,4398.7,4398.1,22.514]
[1755353014991,1.87715365,4398.6,4398.5,1.7447]
[1755353015291,0.3636,4399.0,4398.5,22.7787]
[1755353015490,0.7944,4399.0,4398.9,0.7013]
[1755353015690,1.18023267,4399.0,4398.9,22.7787]
[1755353016089,4.0123,4399.4,4398.9,21.7353]
[1755353016293,0.7096,4399.1,4399.0,1.7447]
[1755353016492,1.7701,4399.1,4399.0,1.7447]
[1755353017594,0.7096,4399.1,4399.0,1.7447]
[1755353018090,0.2639,4399.1,4399.0,1.7447]
[1755353018992,3.5714,4399.4,4399.0,1.7447]
[1755353019192,0.47056682,4399.3,4399.2,0.7013]
[1755353019392,1.87706682,4399.3,4399.2,22.7767]
[1755353019591,1.87706682,4399.3,4399.2,21.032]
[1755353020003,0.7096,4399.0,4398.9,21.032]
[1755353020203,1.87706682,4399.0,4398.9,21.032]